bitfinex-derivatives/quotes_BTCF0:USTF0_20250427
["timestamp","ask_amount","ask_price","bid_price","bid_amount"]
[1745747191460,0.2764086,94315.0,94314.0,0.2120108]
[1745747191659,0.2774086,94315.0,94314.0,0.2120108]
[1745747192157,0.2784086,94315.0,94314.0,0.2120108]
[1745747194457,0.2784086,94315.0,94314.0,0.22858923]
[1745747195650,0.2120131,94313.0,94312.0,0.032]
[1745747195852,0.2120131,94313.0,94312.0,0.04857856]
[1745747196460,0.2120131,94313.0,94312.0,0.032]
[1745747196657,0.2140131,94313.0,94312.0,0.032]
[1745747198355,0.2140131,94313.0,94311.0,0.2120175]
[1745747198356,0.2120154,94312.0,94311.0,0.2120175]
[1745747198551,0.2779154,94312.0,94311.0,0.01657858]
[1745747199863,0.2779154,94312.0,94311.0,0.22859618]
[1745747200474,0.2779154,94312.0,94311.0,0.01657858]
[1745747202660,0.2779154,94312.0,94311.0,0.04927858]
[1745747204055,0.4540154,94312.0,94311.0,0.04927858]
[1745747206465,0.4540154,94312.0,94311.0,0.0327]
[1745747210665,0.8148154,94312.0,94311.0,0.0327]
[1745747213475,0.8148154,94312.0,94311.0,0.04927917]
[1745747215887,0.8148154,94312.0,94311.0,0.26129677]
[1745747217087,0.8148154,94312.0,94311.0,0.2447176]
[1745747217293,0.8148154,94312.0,94311.0,0.26129677]
[1745747217692,0.8148154,94312.0,94311.0,0.04927917]
[1745747217889,0.8148154,94312.0,94311.0,0.26129677]
[1745747218495,0.7821154,94312.0,94311.0,0.26129677]
[1745747219200,0.7821154,94312.0,94311.0,0.29249677]
[1745747222895,0.4213154,94312.0,94311.0,0.29249677]
[1745747223195,0.7821154,94312.0,94311.0,0.29249677]
[1745747224698,0.4213154,94312.0,94311.0,0.29249677]
[1745747224897,0.7821154,94312.0,94311.0,0.29249677]
[1745747225297,0.7831154,94312.0,94311.0,0.29449677]
[1745747226092,0.7831154,94312.0,94311.0,0.29449676]
[1745747226405,0.7831154,94312.0,94311.0,0.2789176]
[1745747226702,0.7831154,94312.0,94311.0,0.29449675]
[1745747226905,0.7831154,94312.0,94311.0,0.2789176]
[1745747227605,0.4223154,94312.0,94311.0,0.2789176]
[1745747227800,0.7831154,94312.0,94311.0,0.2789176]
[1745747228108,0.7821154,94312.0,94311.0,0.29349675]
[1745747228404,0.7831154,94312.0,94311.0,0.29549675]
[1745747230004,0.7831154,94312.0,94311.0,0.2789176]
[1745747238007,0.4223154,94312.0,94311.0,0.2789176]
[1745747238202,0.7831154,94312.0,94311.0,0.2789176]
[1745747242011,0.7831154,94312.0,94311.0,0.29499945]
[1745747242906,0.7831154,94312.0,94311.0,0.2789176]
[1745747246211,0.4223154,94312.0,94311.0,0.2789176]
[1745747246516,0.0530115,94299.0,94292.0,0.053015]
[1745747246718,0.2120514,94296.0,94284.0,0.4138195]
[1745747246904,0.0975,94298.0,94285.0,0.0306]
[1745747247110,0.2120761,94285.0,94284.0,0.2650909]
[1745747247919,0.2730761,94285.0,94284.0,0.2650909]
[1745747248119,0.2730761,94285.0,94284.0,0.3850909]
[1745747248515,0.2740761,94285.0,94284.0,0.3910909]
[1745747248715,0.2740761,94285.0,94284.0,0.3940909]
[1745747249019,0.062,94285.0,94284.0,0.3940909]
[1745747249715,0.2740761,94285.0,94284.0,0.3940909]
[1745747250615,0.2740761,94285.0,94284.0,0.3910909]
[1745747253118,0.2740761,94285.0,94284.0,0.4217909]
[1745747261723,0.2740761,94285.0,94284.0,0.4187909]
[1745747261924,0.2740761,94285.0,94284.0,0.4207909]
[1745747281345,0.2740761,94285.0,94284.0,0.3900909]
[1745747290144,0.2740761,94285.0,94284.0,0.4218909]
[1745747290347,0.2740761,94285.0,94284.0,0.43778862]
[1745747291347,0.2740761,94285.0,94284.0,0.43787051]
[1745747293253,0.2740761,94285.0,94284.0,0.4218909]
[1745747293948,0.062,94285.0,94284.0,0.4218909]
[1745747294146,0.001,94285.0,94284.0,0.4218909]
[1745747298255,0.001,94285.0,94284.0,0.43786758]
[1745747300157,0.001,94285.0,94284.0,0.46786758]
[1745747301248,0.001,94285.0,94284.0,0.4518909]
[1745747303249,0.0314,94289.0,94288.0,0.2120694]
[1745747304051,0.0314,94289.0,94288.0,0.3320694]
[1745747304260,0.0314,94289.0,94288.0,0.3958694]
[1745747304553,0.0324,94289.0,94288.0,0.3998694]
[1745747305542,0.0324,94289.0,94288.0,0.3988694]
[1745747305749,0.0324,94289.0,94288.0,0.4008694]
[1745747307655,0.0324,94289.0,94288.0,0.3988694]
[1745747307860,0.0324,94289.0,94288.0,0.4018694]
[1745747308156,0.001,94289.0,94288.0,0.4018694]
[1745747308356,0.001,94289.0,94288.0,0.41753202]
[1745747311359,0.001,94289.0,94288.0,0.4018694]
[1745747314352,0.001,94289.0,94288.0,0.7626694]
[1745747321369,0.0341,94289.0,94288.0,0.7626694]
[1745747322776,0.0657,94289.0,94288.0,0.7626694]
[1745747323365,0.0657,94289.0,94288.0,0.7309694]
[1745747328363,0.0657,94289.0,94288.0,0.6988694]
[1745747329072,0.0657,94289.0,94288.0,0.3380694]
[1745747329274,0.0657,94289.0,94288.0,0.6988694]
[1745747335690,0.2777671,94289.0,94288.0,0.6988694]
[1745747335883,0.3102671,94289.0,94288.0,0.6988694]
[1745747336490,0.0982,94289.0,94288.0,0.6988694]
[1745747337787,0.3102671,94289.0,94288.0,0.6988694]
[1745747339309,0.3102671,94289.0,94288.0,0.3380694]
[1745747339992,0.3102671,94289.0,94288.0,0.126]
[1745747340192,0.3102671,94289.0,94288.0,0.006]
[1745747340580,0.2120918,94278.0,94277.0,0.00530349]
[1745747341182,0.2120918,94278.0,94277.0,0.33739759]
[1745747341693,0.2758918,94278.0,94277.0,0.35091219]
[1745747343491,0.2758918,94278.0,94277.0,0.35491219]
[1745747343987,0.2758918,94278.0,94277.0,0.35091219]
[1745747344179,0.2758918,94278.0,94277.0,0.35391219]
[1745747344581,0.2758918,94278.0,94277.0,0.35091219]
[1745747345383,0.2758918,94278.0,94277.0,0.23091219]
[1745747346189,0.2758918,94278.0,94277.0,0.00830349]
[1745747347086,0.2758918,94278.0,94277.0,0.12830349]
[1745747347888,0.2758918,94278.0,94277.0,0.34039759]
[1745747350485,0.2758918,94278.0,94277.0,0.33939759]
[1745747351088,0.2758918,94278.0,94277.0,0.33839759]
[1745747356388,0.2758918,94278.0,94277.0,0.12630349]
[1745747357190,0.2758918,94278.0,94277.0,0.00630349]
[1745747358192,0.2758918,94278.0,94277.0,0.12630349]
[1745747361893,0.2758918,94278.0,94277.0,0.33839759]
[1745747362591,0.2758918,94278.0,94277.0,0.12630349]
[1745747363198,0.2758918,94278.0,94277.0,0.21839759]
[1745747363399,0.2758918,94278.0,94277.0,0.00630349]
[1745747364199,0.2758918,94278.0,94277.0,0.12630349]
[1745747364594,0.2758918,94278.0,94277.0,0.33839759]
[1745747365702,0.2758918,94278.0,94277.0,0.12630349]
[1745747368101,0.6366918,94278.0,94277.0,0.12630349]
[1745747368995,0.8127918,94278.0,94277.0,0.33839759]
[1745747371590,0.8127918,94278.0,94277.0,0.37079759]
[1745747373702,0.8127918,94278.0,94277.0,0.40099759]
[1745747374303,0.8127918,94278.0,94277.0,0.12630349]
[1745747378912,0.4519918,94278.0,94277.0,0.12630349]
[1745747379107,0.8127918,94278.0,94277.0,0.12630349]
[1745747391709,0.8127918,94278.0,94277.0,0.15900349]
[1745747401818,0.4519918,94278.0,94277.0,0.15900349]
[1745747402416,0.8127918,94278.0,94277.0,0.15900349]
[1745747403019,0.4519918,94278.0,94277.0,0.15900349]
[1745747403424,0.8127918,94278.0,94277.0,0.15900349]
[1745747404326,0.4519918,94278.0,94277.0,0.15900349]
[1745747404525,0.8127918,94278.0,94277.0,0.15900349]
[1745747405120,0.4519918,94278.0,94277.0,0.15900349]
[1745747405425,0.8127918,94278.0,94277.0,0.15900349]
[1745747405817,0.4519918,94278.0,94277.0,0.15900349]
[1745747406224,0.8127918,94278.0,94277.0,0.15900349]
[1745747407426,0.4519918,94278.0,94277.0,0.15900349]
[1745747407621,0.8127918,94278.0,94277.0,0.15900349]
[1745747408318,0.4519918,94278.0,94277.0,0.15900349]
[1745747408517,0.8127918,94278.0,94277.0,0.15900349]
[1745747409426,0.4519918,94278.0,94277.0,0.15900349]
[1745747409631,0.8127918,94278.0,94277.0,0.15900349]
[1745747420732,0.4519918,94278.0,94277.0,0.15900349]
[1745747420931,0.8127918,94278.0,94277.0,0.15900349]
[1745747422432,0.8127918,94278.0,94277.0,0.37109759]
[1745747424030,0.8127918,94278.0,94277.0,0.15900349]
[1745747426738,0.4519918,94278.0,94277.0,0.15900349]
[1745747426940,0.8127918,94278.0,94277.0,0.15900349]
[1745747430444,0.4519918,94278.0,94277.0,0.15900349]
[1745747430636,0.8127918,94278.0,94277.0,0.15900349]
[1745747431843,0.4519918,94278.0,94277.0,0.15900349]
[1745747432043,0.8127918,94278.0,94277.0,0.15900349]
[1745747435340,0.8137918,94278.0,94277.0,0.15800349]
[1745747439037,0.4529918,94278.0,94277.0,0.15800349]
[1745747439232,0.8137918,94278.0,94277.0,0.15800349]
[1745747452247,0.8137918,94278.0,94277.0,0.19000349]
[1745747454943,0.4529918,94278.0,94277.0,0.19000349]
[1745747455144,0.8137918,94278.0,94277.0,0.19000349]
[1745747455861,0.4529918,94278.0,94277.0,0.19000349]
[1745747456051,0.8137918,94278.0,94277.0,0.19000349]
[1745747456258,0.4529918,94278.0,94277.0,0.19000349]
[1745747456452,0.8137918,94278.0,94277.0,0.19000349]
[1745747459255,0.8137918,94278.0,94277.0,0.12530349]
[1745747459556,0.8137918,94278.0,94277.0,0.11120348]
[1745747459754,0.91985981,94278.0,94277.0,0.11120348]
[1745747460159,0.2121346,94259.0,94258.0,0.0329]
[1745747460358,0.2121346,94259.0,94258.0,0.2450368]
[1745747461066,0.2121346,94259.0,94258.0,0.3650368]
[1745747461364,0.2131346,94259.0,94258.0,0.3680368]
[1745747464870,0.2454346,94259.0,94258.0,0.3680368]
[1745747467186,0.6062346,94259.0,94258.0,0.3680368]
[1745747467971,0.2454346,94259.0,94258.0,0.3680368]
[1745747468177,0.6062346,94259.0,94258.0,0.3680368]
[1745747471384,0.2454346,94259.0,94258.0,0.3680368]
[1745747471584,0.6062346,94259.0,94258.0,0.3680368]
[1745747475785,0.2454346,94259.0,94258.0,0.3680368]
[1745747476087,0.6062346,94259.0,94258.0,0.3680368]
[1745747480492,0.6390346,94259.0,94258.0,0.3680368]
[1745747484291,0.6390346,94259.0,94258.0,0.123]
[1745747484689,0.8151346,94259.0,94258.0,0.123]
[1745747484898,0.9212266,94259.0,94258.0,0.123]
[1745747485192,0.8151346,94259.0,94258.0,0.003]
[1745747485686,0.8141346,94259.0,94258.0,0.003]
[1745747485886,0.8151346,94259.0,94258.0,0.003]
[1745747486091,0.2121526,94251.0,94250.0,0.001061]
[1745747486293,0.5729526,94251.0,94250.0,0.001061]
[1745747486995,0.6346526,94251.0,94250.0,0.001061]
[1745747487194,0.6356526,94251.0,94250.0,0.121061]
[1745747487796,0.6356526,94251.0,94250.0,0.124061]
[1745747491193,0.8117526,94251.0,94250.0,0.124061]
[1745747495687,0.8107526,94251.0,94250.0,0.124061]
[1745747495887,0.8127526,94251.0,94250.0,0.124061]
[1745747496796,0.8147526,94251.0,94250.0,0.121061]
[1745747498400,0.8127526,94251.0,94250.0,0.121061]
[1745747498589,0.8147526,94251.0,94250.0,0.121061]
[1745747501087,0.4539526,94251.0,94250.0,0.121061]
[1745747501291,1.1755526,94251.0,94250.0,0.121061]
[1745747507500,1.1735526,94251.0,94250.0,0.121061]
[1745747507699,1.1755526,94251.0,94250.0,0.121061]
[1745747509103,0.9994526,94251.0,94250.0,0.121061]
[1745747509696,0.9994526,94251.0,94250.0,0.183261]
[1745747509902,0.9974526,94251.0,94250.0,0.183261]
[1745747510209,0.9994526,94251.0,94250.0,0.183261]
[1745747510706,0.9685526,94251.0,94250.0,0.183261]
[1745747511104,0.9675526,94251.0,94250.0,0.183261]
[1745747511405,0.9665526,94251.0,94250.0,0.183261]
[1745747511603,0.9675526,94251.0,94250.0,0.183261]
[1745747516205,0.9655526,94251.0,94250.0,0.183261]
[1745747516399,0.9665526,94251.0,94250.0,0.183261]
[1745747517006,0.6057526,94251.0,94250.0,0.183261]
[1745747519111,0.7818526,94251.0,94250.0,0.183261]
[1745747519610,0.7808526,94251.0,94250.0,0.183261]
[1745747519819,0.7818526,94251.0,94250.0,0.183261]
[1745747520115,0.8144526,94251.0,94250.0,0.183261]
[1745747520419,0.8134526,94251.0,94250.0,0.183261]
[1745747520607,0.8144526,94251.0,94250.0,0.183261]
[1745747521510,0.8144526,94251.0,94250.0,0.152561]
[1745747522619,0.8124526,94251.0,94250.0,0.152561]
[1745747522918,0.8144526,94251.0,94250.0,0.152561]
[1745747523221,0.8144526,94251.0,94250.0,0.121061]
[1745747523523,0.8154526,94251.0,94250.0,0.121061]
[1745747525013,0.8154526,94251.0,94220.0,0.00106134]
[1745747525014,0.2122202,94221.0,94220.0,0.00106134]
[1745747525416,0.2122202,94221.0,94220.0,0.21328374]
[1745747525720,0.2122202,94221.0,94220.0,0.00106134]
[1745747526221,0.2122202,94221.0,94220.0,0.12106134]
[1745747526407,0.2122202,94221.0,94220.0,0.21596134]
[1745747526608,0.2122202,94221.0,94220.0,0.21996134]
[1745747526919,0.2122202,94221.0,94220.0,0.43218374]
[1745747526920,0.2132202,94221.0,94220.0,0.43218374]
[1745747528318,0.2450202,94221.0,94220.0,0.43218374]
[1745747530122,0.2450202,94221.0,94220.0,0.21996134]
[1745747530639,0.2778202,94221.0,94220.0,0.21996134]
[1745747533933,0.2778202,94221.0,94220.0,0.43218374]
[1745747536040,0.2778202,94221.0,94220.0,0.42818374]
[1745747536548,0.2768202,94221.0,94220.0,0.42818374]
[1745747536735,0.2778202,94221.0,94220.0,0.42818374]
[1745747537830,0.2450202,94221.0,94220.0,0.42818374]
[1745747538538,0.2755202,94221.0,94220.0,0.39798374]
[1745747541130,0.2745202,94221.0,94220.0,0.39798374]
[1745747541335,0.2755202,94221.0,94220.0,0.39798374]
[1745747553645,0.2755202,94221.0,94220.0,0.36478374]
[1745747556056,0.2755202,94221.0,94220.0,0.12106134]
[1745747558357,0.6363202,94221.0,94220.0,0.12106134]
[1745747567262,0.2755202,94221.0,94220.0,0.12106134]
[1745747567563,0.6363202,94221.0,94220.0,0.12106134]
[1745747568262,0.2755202,94221.0,94220.0,0.12106134]
[1745747568465,0.6363202,94221.0,94220.0,0.12106134]
[1745747571369,0.2755202,94221.0,94220.0,0.12106134]
[1745747571568,0.6363202,94221.0,94220.0,0.12106134]
[1745747572569,0.2755202,94221.0,94220.0,0.12106134]
[1745747572769,0.6363202,94221.0,94220.0,0.12106134]
[1745747574854,0.6363202,94221.0,94220.0,0.15206134]
[1745747576364,0.6058202,94221.0,94220.0,0.15206134]
[1745747576566,0.001,94221.0,94220.0,0.36428374]
[1745747576961,0.2132202,94221.0,94220.0,0.36428374]
[1745747577960,0.001,94221.0,94220.0,0.36428374]
[1745747578171,0.2132202,94221.0,94220.0,0.36428374]
[1745747578571,0.5740202,94221.0,94220.0,0.15206134]
[1745747578771,0.5740202,94221.0,94220.0,0.12106134]
[1745747579171,0.6345202,94221.0,94220.0,0.12106134]
[1745747597784,0.2737202,94221.0,94220.0,0.12106134]
[1745747597985,0.6345202,94221.0,94220.0,0.12106134]
[1745747599480,0.74065621,94221.0,94220.0,0.12106134]
[1745747599880,0.80545621,94221.0,94220.0,0.12106134]
[1745747600075,0.74065621,94221.0,94220.0,0.12106134]
[1745747600281,0.6993202,94221.0,94220.0,0.00106134]
[1745747600484,0.6345202,94221.0,94220.0,0.00106134]
[1745747601182,0.6345202,94221.0,94220.0,0.12106134]
[1745747607089,0.6345202,94221.0,94220.0,0.15146134]
[1745747607677,0.6345202,94221.0,94220.0,0.18236134]
[1745747610683,0.8106202,94221.0,94220.0,0.18236134]
[1745747611083,0.6040202,94221.0,94220.0,0.18236134]
[1745747611491,0.5740202,94221.0,94220.0,0.39458374]
[1745747611798,0.001,94221.0,94220.0,0.39458374]
[1745747612787,0.2132202,94221.0,94220.0,0.41026671]
[1745747613792,0.2132202,94221.0,94220.0,0.39458374]
[1745747630996,0.2451202,94221.0,94220.0,0.39458374]
[1745747633503,0.2451202,94221.0,94220.0,0.12106134]
[1745747633705,0.2759202,94221.0,94220.0,0.12106134]
[1745747634711,0.2759202,94221.0,94220.0,0.33328374]
[1745747639007,0.6367202,94221.0,94220.0,0.33328374]
[1745747647011,0.2759202,94221.0,94220.0,0.33328374]
[1745747658606,0.053048,94234.0,94233.0,0.2121909]
[1745747658912,0.053048,94234.0,94233.0,0.2449909]
[1745747659111,0.083348,94234.0,94233.0,0.3649909]
[1745747659911,0.29554,94234.0,94233.0,0.3649909]
[1745747660414,0.30154,94234.0,94233.0,0.3649909]
[1745747661612,0.29954,94234.0,94233.0,0.3659909]
[1745747661818,0.32984,94234.0,94233.0,0.3659909]
[1745747662017,0.32684,94234.0,94233.0,0.3659909]
[1745747662605,0.32784,94234.0,94233.0,0.3659909]
[1745747664022,0.32784,94234.0,94233.0,0.1538]
[1745747664712,0.68864,94234.0,94233.0,0.1538]
[1745747667019,0.68864,94234.0,94233.0,0.1528]
[1745747667208,0.68864,94234.0,94233.0,0.1538]
[1745747668522,0.68764,94234.0,94233.0,0.1538]
[1745747668721,0.68864,94234.0,94233.0,0.1538]
[1745747670123,0.68664,94234.0,94233.0,0.1528]
[1745747670323,0.68864,94234.0,94233.0,0.1538]
[1745747670909,0.68764,94234.0,94233.0,0.1528]
[1745747671214,0.68864,94234.0,94233.0,0.1538]
[1745747675621,0.32784,94234.0,94233.0,0.1538]
[1745747675819,0.68864,94234.0,94233.0,0.1538]
[1745747676524,0.32784,94234.0,94233.0,0.1538]
[1745747676822,0.68864,94234.0,94233.0,0.1538]
[1745747677323,0.4234,94234.0,94233.0,0.3659931]
[1745747677621,0.3628,94234.0,94233.0,0.3659931]
[1745747678319,0.3628,94234.0,94233.0,0.3965931]
[1745747678822,0.5749909,94234.0,94233.0,0.3965931]
[1745747679026,0.002,94234.0,94233.0,0.3965931]
[1745747679226,0.2121743,94244.0,94243.0,0.2121706]
[1745747680227,0.2121743,94244.0,94243.0,0.3974706]
[1745747680415,0.2131743,94244.0,94243.0,0.4004706]
[1745747681922,0.2121743,94244.0,94243.0,0.3994706]
[1745747682123,0.2131743,94244.0,94243.0,0.4024706]
[1745747683423,0.2121743,94244.0,94243.0,0.3994706]
[1745747683624,0.2131743,94244.0,94243.0,0.4024706]
[1745747689234,0.001,94244.0,94243.0,0.4024706]
[1745747693338,0.0328,94244.0,94243.0,0.4024706]
[1745747698833,0.2449684,94244.0,94243.0,0.4024706]
[1745747699033,0.2449684,94244.0,94243.0,0.3697706]
[1745747702336,0.2449684,94244.0,94243.0,0.3371706]
[1745747702536,0.6057684,94244.0,94243.0,0.3371706]
[1745747702738,0.6057684,94244.0,94243.0,0.125]
[1745747702931,1.3863084,94244.0,94243.0,0.0901]
[1745747703132,1.49241641,94244.0,94243.0,0.005]
[1745747703747,1.49141641,94244.0,94243.0,0.002]
[1745747703942,1.49241641,94244.0,94243.0,0.005]
[1745747704143,0.96187641,94244.0,94243.0,0.005]
[1745747704345,0.71187641,94244.0,94243.0,0.005]
[1745747704747,0.2121864,94236.0,94235.0,0.2121882]
[1745747705048,0.2121931,94234.0,94233.0,0.2121926]
[1745747705547,0.2756931,94234.0,94233.0,0.2121926]
[1745747706150,0.6374931,94234.0,94233.0,0.3321926]
[1745747706343,0.6683931,94234.0,94233.0,0.3321926]
[1745747707449,0.6693931,94234.0,94233.0,0.3331926]
[1745747707639,0.6693931,94234.0,94233.0,0.3641926]
[1745747708651,0.6683931,94234.0,94233.0,0.3641926]
[1745747708842,0.6693931,94234.0,94233.0,0.3641926]
[1745747709448,0.3085931,94234.0,94233.0,0.3641926]
[1745747710251,0.3085931,94234.0,94233.0,0.3651926]
[1745747710854,0.3075931,94234.0,94233.0,0.3651926]
[1745747713054,0.3065931,94234.0,94233.0,0.3631926]
[1745747713352,0.3075931,94234.0,94233.0,0.3651926]
[1745747713542,0.2766931,94234.0,94233.0,0.3651926]
[1745747713943,0.2766931,94234.0,94233.0,0.3661926]
[1745747714145,0.2766931,94234.0,94233.0,0.3671926]
[1745747724961,0.2766931,94234.0,94233.0,0.3361931]
[1745747725258,0.2766931,94234.0,94233.0,0.124]
[1745747726258,0.2766931,94234.0,94233.0,0.004]
[1745747726861,0.6374931,94234.0,94233.0,0.004]
[1745747733157,0.6374931,94234.0,94233.0,0.124]
[1745747734760,0.8137931,94234.0,94233.0,0.124]
[1745747743766,0.4529931,94234.0,94233.0,0.124]
[1745747743952,0.8137931,94234.0,94233.0,0.124]
[1745747744158,0.8137931,94234.0,94233.0,0.004]
[1745747745155,0.8137931,94234.0,94233.0,0.124]
[1745747745567,0.4529931,94234.0,94233.0,0.124]
[1745747745764,0.8137931,94234.0,94233.0,0.124]
[1745747748669,0.4529931,94234.0,94233.0,0.124]
[1745747748871,0.8137931,94234.0,94233.0,0.124]
[1745747755865,0.4529931,94234.0,94233.0,0.124]
[1745747756066,0.8137931,94234.0,94233.0,0.124]
[1745747760979,0.4529931,94234.0,94233.0,0.124]
[1745747761278,0.8137931,94234.0,94233.0,0.124]
[1745747763181,0.4529931,94234.0,94233.0,0.124]
[1745747763478,0.8137931,94234.0,94233.0,0.124]
[1745747765867,0.4529931,94234.0,94233.0,0.124]
[1745747766068,0.8137931,94234.0,94233.0,0.124]
[1745747770074,0.4529931,94234.0,94233.0,0.124]
[1745747770276,0.8137931,94234.0,94233.0,0.124]
[1745747776475,0.4529931,94234.0,94233.0,0.124]
[1745747776680,0.8137931,94234.0,94233.0,0.124]
[1745747778383,0.4529931,94234.0,94233.0,0.124]
[1745747778585,0.8137931,94234.0,94233.0,0.124]
[1745747784588,0.8137931,94234.0,94233.0,0.10657637]
[1745747786190,0.8137931,94234.0,94233.0,0.16957637]
[1745747787996,0.4529931,94234.0,94233.0,0.16957637]
[1745747788194,0.8137931,94234.0,94233.0,0.16957637]
[1745747807700,0.4529931,94234.0,94233.0,0.16957637]
[1745747808005,0.8137931,94234.0,94233.0,0.16957637]
[1745747817900,0.4529931,94234.0,94233.0,0.16957637]
[1745747818297,0.8137931,94234.0,94233.0,0.16957637]
[1745747819109,0.4529931,94234.0,94233.0,0.16957637]
[1745747819309,0.8137931,94234.0,94233.0,0.16957637]
[1745747824213,0.4529931,94234.0,94233.0,0.16957637]
[1745747824412,0.8137931,94234.0,94233.0,0.16957637]
[1745747826914,0.4529931,94234.0,94233.0,0.16957637]
[1745747827116,0.8137931,94234.0,94233.0,0.16957637]
[1745747828809,0.4529931,94234.0,94233.0,0.16957637]
[1745747829014,0.8137931,94234.0,94233.0,0.16957637]
[1745747833210,0.4529931,94234.0,94233.0,0.16957637]
[1745747833410,0.8137931,94234.0,94233.0,0.16957637]
[1745747836206,0.4529931,94234.0,94233.0,0.16957637]
[1745747836518,0.8137931,94234.0,94233.0,0.16957637]
[1745747839318,0.5739931,94234.0,94233.0,0.38176947]
[1745747839721,0.3618,94234.0,94233.0,0.38176947]
[1745747840629,0.5739909,94234.0,94233.0,0.38176947]
[1745747842222,0.5739909,94234.0,94233.0,0.39266292]
[1745747847833,0.3618,94234.0,94233.0,0.39266292]
[1745747850222,0.001,94234.0,94233.0,0.39266292]
[1745747850622,0.2131909,94234.0,94233.0,0.39266292]
[1745747852536,0.2131909,94234.0,94233.0,0.38176947]
[1745747852738,0.2757909,94234.0,94233.0,0.38176947]
[1745747890375,0.0636,94234.0,94233.0,0.38176947]
[1745747890871,0.0530425,94244.0,94241.0,0.2652139]
[1745747891075,0.3608,94262.0,94244.0,0.0530417]
[1745747891076,0.1763,94260.0,94244.0,0.0530417]
[1745747891374,0.0530348,94257.0,94246.0,0.2121639]
[1745747891565,0.212161,94248.0,94246.0,0.2121639]
[1745747891764,0.5729616,94247.0,94246.0,0.2121639]
[1745747891970,0.3608,94247.0,94246.0,0.2121639]
[1745747892270,0.3608,94247.0,94246.0,0.3653639]
[1745747892468,0.3628,94247.0,94246.0,0.3653639]
[1745747892870,0.2427574,94249.0,94248.0,0.2121594]
[1745747893275,0.2427574,94249.0,94248.0,0.3321594]
[1745747893477,0.2427574,94249.0,94248.0,0.3653594]
[1745747893872,0.0306,94249.0,94248.0,0.3653594]
[1745747894685,0.0316,94249.0,94248.0,0.3673594]
[1745747895185,0.001,94249.0,94248.0,0.3673594]
[1745747895576,0.001,94249.0,94248.0,0.3683594]
[1745747900090,0.001,94249.0,94248.0,0.3673594]
[1745747900284,0.0641,94251.0,94250.0,0.2121549]
[1745747900987,0.0641,94251.0,94250.0,0.2762549]
[1745747901186,0.0641,94251.0,94250.0,0.3962549]
[1745747901893,0.0651,94251.0,94250.0,0.3972549]
[1745747902593,0.0651,94251.0,94250.0,0.3982549]
[1745747903293,0.2772526,94251.0,94250.0,0.3982549]
[1745747903694,0.2772526,94251.0,94250.0,0.40880503]
[1745747911399,0.0651,94251.0,94250.0,0.40880503]
[1745747912185,0.2772526,94251.0,94250.0,0.40880503]
[1745747914797,0.0651,94251.0,94250.0,0.40880503]
[1745747916396,0.2772526,94251.0,94250.0,0.40880503]
[1745747916888,0.0651,94251.0,94250.0,0.40880503]
[1745747917286,0.2772526,94251.0,94250.0,0.40880503]
[1745747927005,0.2772526,94251.0,94250.0,0.3982549]
[1745747929001,0.2772526,94251.0,94250.0,0.3972549]
[1745747930596,0.2772526,94251.0,94250.0,0.3982549]
[1745747932202,0.2772526,94251.0,94250.0,0.3972549]
[1745747934402,0.2772526,94251.0,94250.0,0.41305877]
[1745747936006,0.2772526,94251.0,94250.0,0.41299166]
[1745747939705,0.2772526,94251.0,94250.0,0.41298354]
[1745747940510,0.2772526,94251.0,94250.0,0.13672864]
[1745747941220,0.2772526,94251.0,94250.0,0.1367402]
[1745747941418,0.2772526,94251.0,94250.0,0.3331549]
[1745747941611,0.2772526,94251.0,94250.0,0.121]
[1745747942118,0.2772526,94251.0,94250.0,0.001]
[1745747942508,0.2772526,94251.0,94250.0,0.2131549]
[1745747944018,0.2772526,94251.0,94250.0,0.001]
[1745747944223,0.2772526,94251.0,94250.0,0.3331549]
[1745747944413,0.2762526,94251.0,94250.0,0.3321549]
[1745747944620,0.2772526,94251.0,94250.0,0.3331549]
[1745747945012,0.2782526,94251.0,94250.0,0.3331549]
[1745747945211,0.2772526,94251.0,94250.0,0.2121549]
[1745747945416,0.2782526,94251.0,94250.0,0.2131549]
[1745747946119,0.2782526,94251.0,94250.0,0.001]
[1745747946307,0.2782526,94251.0,94250.0,0.2131549]
[1745747946710,0.2772526,94251.0,94250.0,0.2121549]
[1745747946913,0.2782526,94251.0,94250.0,0.2131549]
[1745747948417,0.2772526,94251.0,94250.0,0.2131549]
[1745747948621,0.2782526,94251.0,94250.0,0.2131549]
[1745747950418,0.2772526,94251.0,94250.0,0.2121549]
[1745747950612,0.2782526,94251.0,94250.0,0.2131549]
[1745747952224,0.2772526,94251.0,94250.0,0.2131549]
[1745747952425,0.2782526,94251.0,94250.0,0.2131549]
[1745747953420,0.2772526,94251.0,94250.0,0.2121549]
[1745747953720,0.2782526,94251.0,94250.0,0.2131549]
[1745747954419,0.2762526,94251.0,94250.0,0.2121549]
[1745747954723,0.2782526,94251.0,94250.0,0.2131549]
[1745747955226,0.2772526,94251.0,94250.0,0.2121549]
[1745747955428,0.2782526,94251.0,94250.0,0.2452549]
[1745747956118,0.2782526,94251.0,94250.0,0.3652549]
[1745747957524,0.2772526,94251.0,94250.0,0.3642549]
[1745747957727,0.2782526,94251.0,94250.0,0.3652549]
[1745747958221,0.2782526,94251.0,94250.0,0.2452549]
[1745747960622,0.2772526,94251.0,94250.0,0.2442549]
[1745747960816,0.2782526,94251.0,94250.0,0.2452549]
[1745747961724,0.2772526,94251.0,94250.0,0.2452549]
[1745747961930,0.2782526,94251.0,94250.0,0.2452549]
[1745747962225,0.2772526,94251.0,94250.0,0.2452549]
[1745747962427,0.2782526,94251.0,94250.0,0.2452549]
[1745747963632,0.2782526,94251.0,94250.0,0.2442549]
[1745747963827,0.2772526,94251.0,94250.0,0.2452549]
[1745747964022,0.2782526,94251.0,94250.0,0.2452549]
[1745747964931,0.2772526,94251.0,94250.0,0.2771549]
[1745747965231,0.2782526,94251.0,94250.0,0.2771549]
[1745747965619,0.2772526,94251.0,94250.0,0.2771549]
[1745747966133,0.2772526,94251.0,94250.0,0.3971549]
[1745747967035,0.2782526,94251.0,94250.0,0.3971549]
[1745747967534,0.2772526,94251.0,94250.0,0.3971549]
[1745747968839,0.2782526,94251.0,94250.0,0.3971549]
[1745747969136,0.2782526,94251.0,94250.0,0.2771549]
[1745747969937,0.2772526,94251.0,94250.0,0.2761549]
[1745747970236,0.2782526,94251.0,94250.0,0.2771549]
[1745747970838,0.2772526,94251.0,94250.0,0.2771549]
[1745747973233,0.2772526,94251.0,94250.0,0.3971549]
[1745747976239,0.2772526,94251.0,94250.0,0.2771549]
[1745747979430,0.2772526,94251.0,94250.0,0.2452549]
[1745747981332,0.2782526,94251.0,94250.0,0.2452549]
[1745747982241,0.2782526,94251.0,94250.0,0.3652549]
[1745747983144,0.2782526,94251.0,94250.0,0.2452549]